bitfinex-derivatives/quotes_SOLF0:USTF0_20250111
["timestamp","ask_amount","ask_price","bid_price","bid_amount"]
[1736615567555,13.93975445,185.89,185.84,2.6916]
[1736615567757,11.24885445,185.89,185.84,2.6916]
[1736615567958,11.24885445,185.89,185.77,11.24885445]
[1736615568259,2.6911,185.88,185.84,2.6916]
[1736615568961,2.6911,185.88,185.83,2.6918]
[1736615569358,11.24885445,185.86,185.82,2.6919]
[1736615569562,11.24885445,185.86,185.76,5.58]
[1736615570362,2.6915,185.85,185.76,5.58]
[1736615570862,2.6915,185.85,185.8,2.6921]
[1736615571664,2.6915,185.85,185.74,22.13429833]
[1736615571962,2.6915,185.85,185.81,2.692]
[1736615572762,11.24885445,185.86,185.81,2.692]
[1736615572959,11.24885445,185.86,185.73,11.24885445]
[1736615573265,11.24885445,185.86,185.83,2.6918]
[1736615573568,11.24885445,185.86,185.76,11.24885445]
[1736615573960,19.49995445,185.89,185.76,11.24885445]
[1736615574155,19.49995445,185.89,185.84,2.6916]
[1736615574361,19.49995445,185.89,185.76,11.24885445]
[1736615574561,19.49995445,185.89,185.79,2.6922]
[1736615574765,19.49995445,185.89,185.76,11.24885445]
[1736615575168,11.24885445,185.89,185.86,2.6913]
[1736615575761,13.93975445,185.89,185.85,2.6915]
[1736615576467,11.24885445,185.89,185.88,2.6911]
[1736615576767,11.24885445,185.89,185.79,11.24885445]
[1736615576959,13.93975445,185.89,185.84,2.6915]
[1736615577157,13.93975445,185.89,185.8,1.6097]
[1736615578066,11.24885445,185.92,185.8,1.6097]
[1736615578267,13.93935445,185.92,185.81,3.115]
[1736615578568,13.93935445,185.92,185.87,2.6911]
[1736615579166,13.93935445,185.92,185.81,3.115]
[1736615579875,11.24885445,185.92,185.81,3.115]
[1736615581265,2.6907,185.91,185.87,2.6912]
[1736615582571,2.6902,185.94,185.82,11.24885445]
[1736615583071,2.6902,185.94,185.89,2.6908]
[1736615583772,2.6904,185.93,185.89,2.6908]
[1736615587163,2.6904,185.93,185.83,41.62297565]
[1736615587368,11.24885445,185.98,185.85,11.24885445]
[1736615587769,11.24885445,185.98,185.88,11.24885445]
[1736615587970,11.24885445,185.98,185.89,3.2425]
[1736615587971,13.93845445,185.98,185.89,3.2425]
[1736615588272,11.24885445,185.98,185.89,3.2425]
[1736615589070,2.6901,185.95,185.92,2.6905]
[1736615589878,11.24885445,185.98,185.91,2.6906]
[1736615590078,11.24885445,185.98,185.89,1.5959]
[1736615590476,2.6897,185.98,185.89,1.5959]
[1736615590875,2.6897,185.98,185.94,2.6901]
[1736615591173,2.6897,185.98,185.9,1.6544]
[1736615591174,2.6894,186.0,185.9,1.6544]
[1736615591378,11.24885445,186.01,185.91,12.83935445]
[1736615591773,11.24885445,186.01,185.91,1.5905]
[1736615592076,2.6897,185.98,185.91,1.5905]
[1736615592873,2.6897,185.98,185.94,2.6901]
[1736615593978,2.6897,185.98,185.91,1.5905]
[1736615594276,2.6897,185.98,185.95,2.69]
[1736615595278,2.6893,186.0,185.97,2.6898]
[1736615595581,11.24885445,186.01,185.97,2.6898]
[1736615595974,2.6894,186.0,185.97,2.6898]
[1736615597281,2.6894,186.0,185.91,1.5905]
[1736615597475,2.6894,186.0,185.96,2.6899]
[1736615597979,2.6894,186.0,185.91,1.5905]
[1736615598280,11.24885445,186.01,185.91,12.83935445]
[1736615598784,11.24885445,186.01,185.98,2.6896]
[1736615598975,2.6894,186.0,185.91,12.83935445]
[1736615599174,2.6894,186.0,185.96,2.6898]
[1736615599379,11.24885445,186.01,185.91,1.5905]
[1736615599576,2.6896,185.98,185.91,1.5905]
[1736615599786,2.6896,185.98,185.95,2.69]
[1736615600076,11.24885445,186.01,185.95,2.69]
[1736615600279,2.6895,185.99,185.95,2.69]
[1736615601279,11.24885445,186.01,185.95,2.69]
[1736615601280,2.6897,185.98,185.95,2.69]
[1736615601581,11.24885445,186.01,185.91,1.5905]
[1736615602177,11.24885445,186.01,185.93,2.6902]
[1736615602676,2.6901,185.95,185.92,2.6905]
[1736615603179,11.24885445,185.98,185.91,1.5905]
[1736615603379,11.24885445,186.01,185.91,1.5905]
[1736615604076,2.6897,185.98,185.94,2.6901]
[1736615604481,2.6897,185.98,185.91,1.5905]
[1736615604777,2.6897,185.98,185.95,2.69]
[1736615604979,2.6895,185.99,185.91,1.5905]
[1736615605180,11.24885445,186.01,185.97,2.6898]
[1736615605573,2.6895,186.0,185.97,2.6898]
[1736615605777,11.24885445,186.04,185.91,12.83935445]
[1736615606084,2.6889,186.03,185.91,12.83935445]
[1736615606383,11.24885445,186.07,185.94,11.24885445]
[1736615608084,11.24885445,186.07,185.99,2.6894]
[1736615609383,11.24885445,186.07,185.94,11.24885445]
[1736615609583,11.24885445,186.07,186.0,2.6893]
[1736615610376,2.6887,186.05,185.94,11.24885445]
[1736615610679,11.24885445,186.07,185.94,11.24885445]
[1736615610875,11.24885445,186.04,185.94,11.24885445]
[1736615611183,11.24885445,186.04,185.91,12.83935445]
[1736615611590,2.6892,186.02,185.97,2.6896]
[1736615612279,2.6892,186.02,185.98,2.6896]
[1736615613487,2.6893,186.01,185.91,12.83935445]
[1736615615182,11.24885445,186.04,185.91,12.83935445]
[1736615615387,7.20164042,185.99,185.93,7.20164042]
[1736615615977,2.6897,185.98,185.95,2.6899]
[1736615616485,7.20164042,185.99,185.96,2.6898]
[1736615616684,7.20164042,185.97,185.91,1.5905]
[1736615616883,2.6898,185.97,185.91,8.79214042]
[1736615617178,7.20164042,185.97,185.94,2.6901]
[1736615617388,7.20164042,185.97,185.91,8.79214042]
[1736615617692,7.20164042,185.99,185.93,7.20164042]
[1736615618192,7.20164042,185.99,185.95,2.69]
[1736615618193,2.6896,185.98,185.95,2.69]
[1736615620787,9.89114042,185.99,185.95,2.69]
[1736615621594,9.89114042,185.99,185.96,2.6899]
[1736615627595,2.6893,186.0,185.97,2.6897]
[1736615627800,7.20164042,186.04,185.97,7.20164042]
[1736615628100,7.63053239,186.07,186.0,2.6892]
[1736615628101,9.89024042,186.05,186.0,2.6892]
[1736615628302,9.89024042,186.05,185.99,7.20164042]
[1736615628896,7.20164042,186.04,185.99,7.20164042]
[1736615629403,2.6885,186.06,186.02,2.6889]
[1736615629595,7.20164042,186.05,186.02,2.6889]
[1736615629901,7.20164042,186.05,185.99,7.20164042]
[1736615630098,125.25301103,186.09,186.01,7.20164042]
[1736615630295,125.25301103,186.09,186.03,7.20164042]
[1736615630496,7.20164042,186.08,186.03,7.20164042]
[1736615631397,7.20164042,186.08,186.05,2.6885]
[1736615631802,7.20164042,186.08,186.03,7.20164042]
[1736615632101,7.20164042,186.08,186.06,2.6884]
[1736615632303,125.25301103,186.09,186.06,2.6884]
[1736615633393,7.20164042,186.08,186.04,1.6011]
[1736615633593,7.20164042,186.08,186.05,2.6886]
[1736615634202,7.20164042,186.08,186.04,1.6011]
[1736615634401,9.88994042,186.08,186.04,1.6011]
[1736615635102,9.88994042,186.08,186.04,4.2898]
[1736615636499,7.20164042,186.06,186.0,7.20164042]
[1736615636999,9.89024042,186.06,186.02,2.689]
[1736615637203,7.20164042,186.04,186.02,2.689]
[1736615637802,7.20164042,186.04,185.99,1.5487]
[1736615638400,9.89024042,186.06,186.02,2.6889]
[1736615641506,7.20164042,186.06,186.04,2.6887]
[1736615641697,7.20164042,186.08,186.02,7.20164042]
[1736615643010,9.88984042,186.08,186.04,2.6886]
[1736615643707,9.88984042,186.08,186.02,7.20164042]
[1736615643910,9.88984042,186.08,186.05,2.6886]
[1736615644110,9.88984042,186.08,186.02,7.20164042]
[1736615645112,9.88984042,186.08,186.04,2.6887]
[1736615645303,7.20164042,186.08,186.02,7.20164042]
[1736615645502,2.6884,186.07,186.02,7.20164042]
[1736615646809,7.20164042,186.06,185.99,1.5487]
[1736615647014,7.20164042,186.04,185.99,8.75034042]
[1736615647315,7.20164042,186.04,186.01,2.6891]
[1736615647713,7.20164042,186.02,185.99,1.5487]
[1736615647911,7.20164042,186.02,185.99,4.2382]
[1736615648110,9.89074042,186.02,185.97,1.55]
[1736615648512,9.89074042,186.02,185.98,2.6895]
[1736615648911,9.89074042,186.02,185.97,1.55]
[1736615649919,2.6895,185.99,185.91,7.485415]
[1736615650113,2.6895,185.99,185.93,7.20164042]
[1736615650316,7.20164042,186.0,185.97,2.6897]
[1736615655821,7.20164042,185.98,185.97,2.6897]
[1736615656017,7.20164042,185.98,185.96,2.6899]
[1736615656316,7.20164042,185.98,185.93,7.20164042]
[1736615656509,9.89104042,186.0,185.97,2.6898]
[1736615660412,7.20164042,186.0,185.94,7.20164042]
[1736615660616,7.20164042,186.04,185.98,7.20164042]
[1736615661216,7.20164042,186.04,186.0,2.6892]
[1736615662123,2.6889,186.03,186.0,2.6892]
[1736615662521,7.20164042,186.04,185.98,1.5927]
[1736615662715,9.89104042,186.0,185.96,2.6898]
[1736615662917,9.89104042,186.0,185.94,7.20164042]
[1736615663115,7.20164042,186.0,185.94,7.20164042]
[1736615663317,7.20164042,186.0,185.98,2.6896]
[1736615664824,7.20164042,186.0,185.97,2.6897]
[1736615665624,7.20164042,185.98,185.96,2.6898]
[1736615666423,9.89104042,186.0,185.96,2.6898]
[1736615668224,2.6895,185.99,185.96,2.6898]
[1736615669115,7.20164042,185.98,185.9,1.5927]
[1736615669318,7.20164042,185.98,185.94,2.6901]
[1736615670226,2.6898,185.97,185.94,2.6901]
[1736615670727,7.20164042,185.96,185.9,1.5927]
[1736615670924,7.20164042,185.93,185.9,1.5927]
[1736615671228,9.89214042,185.93,185.9,1.5927]
[1736615671818,2.6905,185.93,185.9,1.5927]
[1736615672021,2.6905,185.93,185.9,4.2835]
[1736615672926,9.89184042,185.94,185.9,4.2835]
[1736615675026,7.20164042,185.94,185.91,2.6906]
[1736615675525,5.5,186.0,185.9,8.79434042]
[1736615675721,7.64063736,186.04,185.92,7.20164042]
[1736615675722,7.20164042,185.99,185.92,7.20164042]
[1736615675921,7.20164042,185.99,185.94,7.20164042]
[1736615679330,7.20164042,185.99,185.96,2.6898]
[1736615681834,7.20164042,185.99,185.97,2.6898]
[1736615682831,7.20164042,185.99,185.9,1.5927]
[1736615683029,0.1468,186.07,185.91,7.20164042]
[1736615683233,7.20164042,185.97,185.91,7.20164042]
[1736615683429,7.20164042,185.97,185.92,2.6904]
[1736615683629,7.20164042,185.97,185.91,7.20164042]
[1736615684426,7.20164042,185.97,185.94,2.6901]
[1736615688936,2.6894,186.0,185.96,2.6899]
[1736615689138,7.20164042,185.99,185.93,7.20164042]
[1736615690034,0.1468,186.07,185.9,1.5927]
[1736615690238,9.24483736,186.08,185.99,7.20164042]
[1736615690239,7.20164042,186.04,185.99,7.20164042]
[1736615690739,7.20164042,186.04,186.03,2.6889]
[1736615691438,7.64063736,186.08,186.04,2.6887]
[1736615691439,7.20164042,186.06,186.04,2.6887]
[1736615692038,14.84227778,186.08,186.03,2.6889]
[1736615692235,7.20164042,186.08,186.01,7.20164042]
[1736615692937,7.20164042,186.08,186.04,2.6887]
[1736615693542,7.20164042,186.08,186.05,2.6886]
[1736615694142,7.20164042,186.08,186.01,7.20164042]
[1736615694337,7.20164042,186.06,186.03,2.6889]
[1736615694536,7.20164042,186.06,186.0,1.5357]
[1736615694743,9.89024042,186.06,186.02,2.689]
[1736615695642,7.20164042,186.06,186.0,1.5357]
[1736615695835,125.25301103,186.09,186.01,2.6892]
[1736615695836,7.20164042,186.04,186.01,2.6892]
[1736615696539,7.20164042,186.04,186.01,2.6891]
[1736615696740,7.20164042,186.04,186.0,1.5357]
[1736615697239,7.20164042,186.04,186.01,2.6891]
[1736615698442,7.20164042,186.05,186.02,2.689]
[1736615698642,7.20164042,186.05,186.0,1.5357]
[1736615698839,7.64948503,186.08,186.0,1.5357]
[1736615699145,7.20164042,186.1,186.03,7.20164042]
[1736615699340,4.49597642,186.13,186.07,7.20164042]
[1736615699544,7.20164042,186.13,186.1,2.6879]
[1736615700444,7.20164042,186.11,186.05,7.20164042]
[1736615700840,7.20164042,186.09,186.03,7.20164042]
[1736615701642,7.20164042,186.09,186.05,2.6885]
[1736615702045,2.6882,186.08,186.04,2.6887]
[1736615702639,7.20164042,186.07,186.01,12.70164042]
[1736615702846,2.6885,186.06,186.0,1.5357]
[1736615703144,5.5,186.11,186.0,8.73734042]
[1736615703343,2.6883,186.08,186.0,1.5357]
[1736615704145,11.24367912,186.1,186.0,1.5357]
[1736615704344,2.6881,186.09,186.04,2.6886]
[1736615704548,11.24367912,186.1,186.04,2.6886]
[1736615705549,2.6883,186.08,186.04,2.6886]
[1736615706242,11.24367912,186.1,186.02,2.689]
[1736615706544,11.24367912,186.07,186.02,2.689]
[1736615707240,2.6885,186.06,186.02,2.689]
[1736615708248,2.6888,186.04,186.0,4.2249]
[1736615708438,11.24367912,186.07,186.0,1.5357]
[1736615709144,2.6885,186.06,186.02,2.6889]
[1736615709350,11.24367912,186.07,186.0,1.5357]
[1736615710353,13.93207912,186.07,186.02,2.6889]
[1736615710557,11.24367912,186.07,186.02,2.6889]
[1736615710753,11.24367912,186.07,186.0,1.5357]
[1736615711053,2.6887,186.05,186.01,2.6891]
[1736615711254,11.24367912,186.04,185.96,3.3441]
[1736615711451,13.93247912,186.04,186.0,2.6893]
[1736615716058,11.24367912,186.04,185.95,1.573]
[1736615716258,11.24367912,186.01,185.95,1.573]
[1736615716664,11.24367912,186.01,185.91,3.2046]
[1736615717260,2.6898,185.97,185.94,2.6902]
[1736615717466,2.6898,185.97,185.91,3.2046]
[1736615718168,2.6898,185.97,185.94,2.6902]
[1736615718363,2.6898,185.97,185.91,3.2046]
[1736615718757,2.6898,185.97,185.93,2.6903]
[1736615719367,2.6901,185.95,185.91,4.3107]
[1736615719565,11.24367912,185.98,185.9,1.6691]
[1736615720469,11.24367912,185.98,185.9,4.3598]
[1736615720666,11.24367912,185.95,185.86,80.11656175]
[1736615721169,2.6906,185.92,185.88,2.691]
[1736615721863,11.24367912,185.98,185.92,2.6905]
[1736615722066,13.1281143,186.0,185.92,2.6905]
[1736615722466,5.5,186.0,185.92,2.6905]
[1736615723069,18.87179342,186.01,185.91,11.24367912]
[1736615723261,7.6281143,186.01,185.92,1.5712]
[1736615723467,2.6892,186.02,185.92,1.5712]
[1736615723770,11.24367912,185.98,185.86,88.25154087]
[1736615723973,11.24367912,185.98,185.86,89.82274087]
[1736615724272,11.24367912,185.98,185.89,2.6909]
[1736615724471,2.6904,185.93,185.89,2.6909]
[1736615724772,16.74367912,185.98,185.86,89.82274087]
[1736615725169,2.6902,185.95,185.86,89.82274087]
[1736615725370,16.74367912,185.98,185.86,89.82274087]
[1736615725572,2.6903,185.94,185.89,2.6908]
[1736615725772,16.74367912,185.98,185.86,89.82274087]
[1736615726174,16.74367912,185.98,185.88,2.691]
[1736615726970,16.74367912,185.98,185.86,89.82274087]
[1736615727171,11.24367912,185.95,185.87,2.6912]
[1736615727374,7.20759351,185.92,185.87,2.6912]
[1736615727875,2.6907,185.91,185.87,2.6912]
[1736615728277,2.6911,185.88,185.86,1.5712]
[1736615728474,2.6911,185.88,185.84,9.89919351]
[1736615729271,2.6912,185.87,185.83,2.6918]
[1736615729579,7.20759351,185.9,185.82,11.87189351]
[1736615730374,7.20759351,185.88,185.82,11.87189351]
[1736615731069,2.6915,185.86,185.82,4.2344]
[1736615731272,7.20759351,185.86,185.75,1.6402]
[1736615731479,7.20759351,185.86,185.75,3.2369]
[1736615731782,7.20759351,185.86,185.8,7.20759351]
[1736615732376,9.89909351,185.86,185.81,2.692]
[1736615732975,7.20759351,185.86,185.75,3.2369]
[1736615733175,7.20759351,185.86,185.79,9.89989351]
[1736615733581,7.20759351,185.86,185.79,7.20759351]
[1736615733778,2.6917,185.84,185.8,2.6922]
[1736615734579,2.6918,185.83,185.79,9.89999351]
[1736615735378,2.692,185.82,185.79,7.20759351]
[1736615735579,7.20759351,185.84,185.77,7.20759351]
[1736615735980,5.5,185.9,185.75,3.2369]
[1736615735981,7.20759351,185.82,185.75,3.2369]
[1736615736279,7.20759351,185.82,185.76,7.20759351]
[1736615736876,9.89959351,185.82,185.77,2.6927]
[1736615737077,7.20759351,185.82,185.76,7.20759351]
[1736615737380,7.20759351,185.82,185.75,8.80429351]
[1736615737585,7.20759351,185.8,185.75,8.80429351]
[1736615738584,9.89999351,185.8,185.75,11.49719351]
[1736615738788,7.20759351,185.8,185.75,4.2896]
[1736615739084,7.20759351,185.81,185.75,1.5967]
[1736615739283,7.20759351,185.81,185.77,2.6927]
[1736615739887,9.89999351,185.79,185.75,4.2895]
[1736615740188,7.20759351,185.79,185.75,8.80429351]
[1736615741090,7.20759351,185.79,185.76,2.6928]
[1736615741291,7.20759351,185.79,185.7,1.5873]
[1736615741292,7.20759351,185.77,185.7,1.5873]
[1736615741589,7.20759351,185.75,185.72,2.6933]
[1736615742579,2.6925,185.79,185.73,7.20759351]
[1736615742789,0.1497,185.88,185.75,7.20759351]
[1736615742790,7.20759351,185.8,185.75,7.20759351]
[1736615743189,7.20759351,185.8,185.76,2.6928]
[1736615743389,7.20759351,185.81,185.75,7.20759351]
[1736615743992,5.3788,186.0,185.79,7.20759351]
[1736615744193,7.20759351,185.86,185.81,7.20759351]
[1736615744387,9.89849351,185.9,185.83,7.20759351]
[1736615744594,5.62,185.94,185.83,7.20759351]
[1736615744787,7.20759351,185.9,185.85,7.20759351]
[1736615744983,7.20759351,185.92,185.89,2.6909]
[1736615745288,7.20759351,185.92,185.85,7.20759351]
[1736615745489,7.20759351,185.92,185.87,2.6911]
[1736615746392,2.6902,185.94,185.88,2.691]
[1736615746587,7.20759351,185.92,185.85,7.20759351]
[1736615746984,7.20759351,185.92,185.87,2.6911]
[1736615747389,2.6902,185.94,185.87,2.6911]
[1736615748086,2.6902,185.94,185.83,11.26203543]
[1736615748292,2.6901,185.95,185.86,11.26203543]
[1736615748492,2.6901,185.95,185.87,3.2114]
[1736615748885,11.26203543,185.98,185.87,3.2114]
[1736615749088,2.6902,185.94,185.89,2.6909]
[1736615750591,2.6904,185.93,185.89,2.6909]
[1736615751395,11.26203543,185.98,185.89,2.6909]
[1736615751396,2.6902,185.94,185.89,2.6909]
[1736615751697,2.6902,185.94,185.88,1.6628]
[1736615753199,2.6902,185.94,185.89,2.6909]
[1736615753398,2.69,185.96,185.88,1.6628]
[1736615753988,11.26203543,185.98,185.88,1.6628]
[1736615754590,2.6909,185.9,185.87,1.5994]
[1736615754896,11.26203543,185.92,185.87,1.5994]
[1736615755498,2.6911,185.89,185.87,1.5994]
[1736615755699,11.26203543,185.92,185.87,1.5994]
[1736615755894,11.26203543,185.95,185.87,1.5994]
[1736615756102,2.6905,185.93,185.87,1.5994]
[1736615756296,11.26203543,185.95,185.87,1.5994]
[1736615757301,2.6904,185.93,185.88,2.6911]
[1736615758402,11.26203543,185.95,185.87,1.5994]
[1736615758900,11.26203543,185.95,185.88,1.6705]
[1736615759301,11.26203543,185.98,185.88,12.93253543]
[1736615759494,11.26203543,185.98,185.89,1.6494]
[1736615759997,11.26203543,185.98,185.92,2.6904]
[1736615761103,11.26203543,186.01,185.89,1.6494]
[1736615761696,2.6896,185.98,185.89,1.6494]
[1736615763000,2.6896,185.98,185.93,2.6902]
[1736615764405,2.6896,185.98,185.89,1.6494]
[1736615764706,2.6896,185.98,185.94,2.6902]
[1736615766403,7.2078,186.03,185.89,1.6494]
[1736615766404,11.26203543,185.97,185.89,1.6494]
[1736615767000,2.6903,185.94,185.89,4.3402]
[1736615768406,2.6903,185.94,185.9,2.6908]
[1736615769909,2.6904,185.93,185.9,2.6908]
[1736615770803,11.26203543,185.97,185.9,2.6908]
[1736615770804,2.6902,185.94,185.9,2.6908]
[1736615771002,11.26203543,185.97,185.93,2.6903]
[1736615771305,2.6899,185.96,185.88,12.93253543]
[1736615771508,2.6899,185.96,185.9,2.6907]
[1736615771708,2.6899,185.96,185.88,12.93253543]
[1736615772306,2.6898,185.97,185.88,12.93253543]
[1736615773006,2.6898,185.97,185.9,2.6907]
[1736615773303,2.6902,185.95,185.88,1.6705]
[1736615773505,11.26203543,186.0,185.88,1.6705]
[1736615773706,11.26203543,185.97,185.9,2.6908]
[1736615776007,2.6904,185.93,185.89,2.6909]
[1736615776613,11.26203543,185.97,185.87,1.5994]
[1736615776814,2.6907,185.91,185.87,4.2906]
[1736615778013,2.6908,185.9,185.87,4.2906]
[1736615778313,11.26203543,185.94,185.87,1.5994]
[1736615778513,2.6905,185.92,185.87,1.5994]
[1736615779211,2.6904,185.93,185.87,1.5994]
[1736615779407,11.26203543,185.97,185.87,1.5994]
[1736615780015,11.26203543,185.97,185.87,12.86143543]
[1736615780612,2.69,185.96,185.87,12.86143543]
[1736615781217,11.26203543,186.0,185.9,11.26203543]
[1736615781416,12.82983543,186.03,185.9,11.26203543]
[1736615781713,2.6891,186.02,185.98,2.6896]
[1736615782119,2.689,186.03,185.97,2.6897]
[1736615782417,11.26203543,186.06,185.97,2.6897]
[1736615783018,11.26203543,186.06,185.94,1.5967]
[1736615783219,2.6892,186.02,185.98,2.6896]
[1736615783420,11.26203543,186.03,185.94,1.5967]
[1736615783619,2.6896,185.99,185.95,2.69]
[1736615783819,11.26203543,186.03,185.94,1.5967]
[1736615784321,2.6893,186.0,185.96,2.6899]
[1736615785124,2.6889,186.04,185.94,12.85873543]
[1736615785324,130.6407308,186.07,185.94,12.85873543]
[1736615785525,130.6407308,186.07,185.97,11.26203543]
[1736615785724,130.6407308,186.07,185.98,1.5335]
[1736615786325,133.3290308,186.07,186.0,2.6892]
[1736615786528,133.3290308,186.07,185.98,1.5335]
[1736615787229,127.9440308,186.07,185.98,1.5335]
[1736615787432,127.9440308,186.07,185.99,1.6465]
[1736615787824,11.26203543,186.11,186.05,2.6886]
[1736615787825,2.6882,186.09,186.05,2.6886]
[1736615788026,11.26203543,186.11,186.01,1.6828]
[1736615788228,11.26203543,186.14,186.03,11.26203543]
[1736615788926,11.26203543,186.14,186.01,1.6828]
[1736615788927,2.6878,186.11,186.06,2.6884]
[1736615789123,11.26203543,186.14,186.02,11.26203543]
[1736615789821,2.6879,186.1,186.05,2.6885]
[1736615790829,11.26203543,186.11,186.04,2.6887]
[1736615791028,11.26203543,186.08,186.01,1.6828]
[1736615791332,2.6885,186.06,186.01,1.6828]
[1736615792031,11.26203543,186.08,186.02,2.689]
[1736615792231,2.6883,186.07,186.01,1.6828]
[1736615793130,2.6883,186.07,186.03,2.6889]
[1736615793632,2.6885,186.06,186.02,2.689]
[1736615793836,11.26203543,186.08,185.99,1.6465]
[1736615794130,11.26203543,186.05,185.98,1.5335]
[1736615794535,11.26203543,186.05,185.98,4.2231]
[1736615794536,2.689,186.03,185.98,4.2231]
[1736615795931,2.689,186.03,185.99,2.6895]
[1736615796234,11.26203543,186.05,185.98,1.5335]
[1736615796834,11.26203543,186.08,185.98,1.5335]
[1736615797132,11.26203543,186.08,185.98,12.79553543]
[1736615797338,11.26203543,186.11,185.98,12.79553543]
[1736615797635,2.6882,186.09,186.04,2.6886]
[1736615797835,2.6882,186.09,185.98,12.79553543]
[1736615798038,11.26203543,186.11,185.98,12.79553543]
[1736615798233,5.6,186.13,186.01,11.26203543]
[1736615798537,12.83363543,186.14,186.04,11.26203543]
[1736615799533,2.6876,186.12,186.07,2.6882]
[1736615799737,12.83363543,186.14,186.04,11.26203543]
[1736615800239,12.83363543,186.14,186.04,13.95073543]
[1736615801434,2.6876,186.12,186.06,2.6884]
[1736615802030,2.6878,186.11,186.05,2.6886]
[1736615802740,2.6879,186.1,186.04,13.95073543]
[1736615802938,11.26203543,186.14,186.04,11.26203543]
[1736615803244,11.26203543,186.11,185.98,12.79553543]
[1736615803539,11.26203543,186.08,185.98,12.79553543]
[1736615804139,11.26203543,186.08,185.98,1.5335]
[1736615804335,11.26203543,186.08,185.95,20.07943543]
[1736615804536,2.6892,186.01,185.95,22.76933543]
[1736615804837,11.26203543,186.08,185.95,20.07943543]
[1736615805041,2.6891,186.02,185.96,2.6899]
[1736615805341,11.26203543,186.08,185.96,2.6899]
[1736615805540,11.26203543,186.08,185.95,20.07943543]
[1736615806041,2.6884,186.07,186.0,2.6893]
[1736615806342,2.6884,186.07,185.98,11.26203543]
[1736615806541,2.6884,186.07,186.01,2.6891]
[1736615806739,2.6885,186.06,185.99,1.5529]
[1736615807043,11.26203543,186.08,185.99,1.5529]
[1736615807643,11.26203543,186.08,185.99,4.2424]
[1736615807948,11.26203543,186.08,185.95,20.07943543]
[1736615808145,2.6893,186.01,185.96,2.6899]
[1736615809743,2.6889,186.03,185.95,14.49943543]
[1736615810242,2.6889,186.03,185.97,2.6897]
[1736615810443,2.6889,186.03,185.95,14.49943543]
[1736615811145,2.6889,186.03,185.98,2.6895]
[1736615811341,11.26203543,186.08,185.95,14.49943543]
[1736615811542,2.6887,186.05,185.95,14.49943543]
[1736615811737,2.6887,186.05,185.99,2.6893]
[1736615812442,11.26203543,186.08,185.99,2.6893]
[1736615812643,2.6888,186.04,185.99,2.6893]
[1736615813444,16.82203543,186.12,186.02,2.689]
[1736615814146,2.6884,186.07,186.02,2.689]
[1736615815044,11.26203543,186.12,186.03,2.6889]
[1736615815250,2.6881,186.09,186.01,11.26203543]
[1736615815445,136.47754232,186.15,186.02,3.2009]
[1736615815745,2.6877,186.12,186.07,2.6883]
[1736615816245,136.47754232,186.15,186.07,2.6883]
[1736615816749,2.6879,186.11,186.07,2.6883]
[1736615817747,2.6879,186.1,186.06,2.6884]
[1736615817948,136.47754232,186.15,186.06,2.6884]
[1736615818150,11.26203543,186.09,186.02,3.2009]
[1736615818346,11.26203543,186.09,186.0,5.56]
[1736615819049,2.6887,186.05,186.0,5.56]
[1736615819449,11.26203543,186.09,186.0,5.56]
[1736615819647,2.6884,186.07,186.0,5.56]
[1736615820250,2.6884,186.07,186.03,2.6889]
[1736615820849,11.26203543,186.12,186.04,2.6887]
[1736615821153,11.26203543,186.12,186.02,11.26203543]
[1736615821351,11.26203543,186.15,186.08,2.6881]
[1736615821653,11.26203543,186.15,186.02,11.26203543]
[1736615822044,11.26203543,186.12,186.0,82.45260898]
[1736615822354,11.26203543,186.09,186.0,82.45260898]
[1736615822755,11.26203543,186.09,186.01,2.6892]
[1736615823353,2.6886,186.06,186.02,2.689]
[1736615823553,11.26203543,186.09,186.0,82.45260898]
[1736615823954,2.6883,186.08,186.03,2.6888]
[1736615824154,2.6883,186.08,186.0,5.56]
[1736615824558,11.26203543,186.12,186.01,11.26203543]
[1736615825457,11.26203543,186.12,186.05,2.6885]
[1736615825458,2.688,186.09,186.05,2.6885]
[1736615825952,2.6883,186.07,186.01,11.26203543]
[1736615826549,2.6883,186.07,186.01,2.6891]
[1736615826753,2.6886,186.05,185.99,1.6634]